[Event "FIDE Women's Grand Swiss 2023"]
[Site "Villa Marina, Douglas, Isle of Man, Isle Of Man"]
[Date "2023.11.05"]
[Round "11.6"]
[White "Kamalidenova, Meruert"]
[Black "Muzychuk, Mariya"]
[Result "0-1"]
[TimeControl "40/90 + 30 + 30s/move"]
[WhiteFideId "13712802"]
[BlackFideId "14114550"]
[WhiteElo "2351"]
[BlackElo "2519"]

1. e4 {[%clk 01:30:57]} {[%emt 00:00:02]} c5 {[%clk 01:30:51]} {[%emt
00:00:10]} 2. Nf3 {[%clk 01:31:22]} {[%emt 00:00:05]} Nc6 {[%clk 01:31:14]}
{[%emt 00:00:07]} 3. Nc3 {[%clk 01:31:47]} {[%emt 00:00:05]} e5 {[%clk
01:30:57]} {[%emt 00:00:48]} 4. Bc4 {[%clk 01:31:57]} {[%emt 00:00:19]} Be7
{[%clk 01:31:12]} {[%emt 00:00:15]} 5. d3 {[%clk 01:32:10]} {[%emt 00:00:17]}
d6 {[%clk 01:31:15]} {[%emt 00:00:27]} 6. O-O {[%clk 01:32:29]} {[%emt
00:00:11]} Nf6 {[%clk 01:31:10]} {[%emt 00:00:35]} 7. Ng5 {[%clk 01:32:49]}
{[%emt 00:00:10]} O-O {[%clk 01:31:22]} {[%emt 00:00:18]} 8. f4 {[%clk
01:33:13]} {[%emt 00:00:06]} Bg4 {[%clk 01:30:24]} {[%emt 00:01:28]} 9. Qe1
{[%clk 01:33:19]} {[%emt 00:00:24]} exf4 {[%clk 01:30:30]} {[%emt 00:00:24]} 10.
Bxf4 {[%clk 01:33:43]} {[%emt 00:00:06]} Nd4 {[%clk 01:30:39]} {[%emt
00:00:21]} 11. Qf2 {[%clk 01:34:03]} {[%emt 00:00:10]} Be6 {[%clk 01:27:14]}
{[%emt 00:03:56]} 12. Nf3 {[%clk 01:27:17]} {[%emt 00:07:16]} Nxe4 {[%clk
01:21:38]} {[%emt 00:06:07]} 13. Nxe4 {[%clk 01:26:49]} {[%emt 00:00:57]} d5
{[%clk 01:20:46]} {[%emt 00:01:23]} 14. Nxd4 {[%clk 01:15:47]} {[%emt
00:11:31]} cxd4 {[%clk 01:21:11]} {[%emt 00:00:05]} 15. Qxd4 {[%clk 01:08:31]}
{[%emt 00:07:46]} dxc4 {[%clk 01:20:02]} {[%emt 00:01:40]} 16. Qxd8 {[%clk
01:07:36]} {[%emt 00:01:24]} Rfxd8 {[%clk 01:13:31]} {[%emt 00:07:01]} 17. dxc4
{[%clk 01:07:13]} {[%emt 00:00:53]} Bxc4 {[%clk 01:13:46]} {[%emt 00:00:16]} 18.
Rfe1 {[%clk 01:06:56]} {[%emt 00:00:46]} h6 {[%clk 01:13:13]} {[%emt 00:01:03]}
19. Rad1 {[%clk 01:03:32]} {[%emt 00:03:53]} Bxa2 {[%clk 00:55:12]} {[%emt
00:18:33]} 20. b3 {[%clk 00:56:10]} {[%emt 00:07:51]} Rac8 {[%clk 00:48:15]}
{[%emt 00:07:27]} 21. Rxd8+ {[%clk 00:55:44]} {[%emt 00:00:57]} Bxd8 {[%clk
00:47:47]} {[%emt 00:00:58]} 22. Rc1 {[%clk 00:54:28]} {[%emt 00:01:45]} Rc6
{[%clk 00:38:41]} {[%emt 00:09:36]} 23. Kf2 {[%clk 00:41:37]} {[%emt 00:13:20]}
a5 {[%clk 00:36:08]} {[%emt 00:03:03]} 24. Be3 {[%clk 00:33:33]} {[%emt
00:08:34]} b5 {[%clk 00:24:53]} {[%emt 00:11:46]} 25. Nc5 {[%clk 00:23:44]}
{[%emt 00:10:17]} Bb6 {[%clk 00:24:14]} {[%emt 00:01:10]} 26. Ra1 {[%clk
00:23:19]} {[%emt 00:00:55]} Bxc5 {[%clk 00:21:31]} {[%emt 00:03:14]} 27. Bxc5
{[%clk 00:23:36]} {[%emt 00:00:12]} Bb1 {[%clk 00:21:48]} {[%emt 00:00:13]} 28.
Rxb1 {[%clk 00:21:53]} {[%emt 00:02:13]} Rxc5 {[%clk 00:22:15]} {[%emt
00:00:03]} 29. Rb2 {[%clk 00:22:09]} {[%emt 00:00:14]} g5 {[%clk 00:16:30]}
{[%emt 00:06:15]} 30. Ke3 {[%clk 00:22:02]} {[%emt 00:00:36]} b4 {[%clk
00:16:46]} {[%emt 00:00:15]} 31. Ra2 {[%clk 00:21:29]} {[%emt 00:01:04]} Kg7
{[%clk 00:17:03]} {[%emt 00:00:13]} 32. g3 {[%clk 00:21:15]} {[%emt 00:00:44]}
Kg6 {[%clk 00:16:31]} {[%emt 00:01:03]} 33. Kd3 {[%clk 00:18:41]} {[%emt
00:03:03]} f6 {[%clk 00:16:29]} {[%emt 00:00:32]} 34. Ra1 {[%clk 00:18:30]}
{[%emt 00:00:41]} h5 {[%clk 00:15:22]} {[%emt 00:01:37]} 35. Rg1 {[%clk
00:17:27]} {[%emt 00:01:32]} Rc3+ {[%clk 00:13:47]} {[%emt 00:02:06]} 36. Kd2
{[%clk 00:17:29]} {[%emt 00:00:27]} Rf3 {[%clk 00:13:33]} {[%emt 00:00:45]} 37.
Ke2 {[%clk 00:17:21]} {[%emt 00:00:39]} Rc3 {[%clk 00:06:31]} {[%emt 00:07:32]}
38. Kd2 {[%clk 00:17:44]} {[%emt 00:00:07]} g4 {[%clk 00:05:57]} {[%emt
00:01:03]} 39. Re1 {[%clk 00:17:14]} {[%emt 00:01:00]} Rf3 {[%clk 00:06:15]}
{[%emt 00:00:13]} 40. Re2 {[%clk 00:17:09]} {[%emt 00:00:34]} Kg5 {[%clk
00:05:54]} {[%emt 00:00:51]} 41. Ke1 {[%clk 00:14:56]} {[%emt 00:02:43]} h4
{[%clk 00:04:00]} {[%emt 00:02:24]} 42. gxh4+ {[%clk 00:14:50]} {[%emt
00:00:36]} Kxh4 {[%clk 00:04:20]} {[%emt 00:00:10]} 43. Re8 {[%clk 00:15:00]}
{[%emt 00:00:20]} Kh3 {[%clk 00:03:19]} {[%emt 00:01:31]} 44. Rh8+ {[%clk
00:15:14]} {[%emt 00:00:16]} Kg2 {[%clk 00:03:43]} {[%emt 00:00:06]} 45. Rg8
{[%clk 00:15:24]} {[%emt 00:00:20]} f5 {[%clk 00:28:14]} {[%emt 00:05:59]} 46.
h4 {[%clk 00:45:36]} {[%emt 00:00:18]} Re3+ {[%clk 00:26:02]} {[%emt 00:02:42]}
47. Kd2 {[%clk 00:45:57]} {[%emt 00:00:09]} Rh3 {[%clk 00:25:05]} {[%emt
00:01:27]} 48. Rg5 {[%clk 00:46:05]} {[%emt 00:00:22]} g3 {[%clk 00:24:26]}
{[%emt 00:01:10]} 49. Ke3 {[%clk 00:44:10]} {[%emt 00:02:25]} Kh1 {[%clk
00:20:20]} {[%emt 00:04:36]} 50. h5 {[%clk 00:43:48]} {[%emt 00:00:51]} g2+
{[%clk 00:20:20]} {[%emt 00:00:30]} 51. Kf2 {[%clk 00:44:14]} {[%emt 00:00:04]}
Rh2 {[%clk 00:20:33]} {[%emt 00:00:16]} 0-1

[Event "FIDE Women's Grand Swiss 2023"]
[Site "Villa Marina, Douglas, Isle of Man, Isle Of Man"]
[Date "2023.11.05"]
[Round "11.7"]
[White "Assaubayeva, Bibisara"]
[Black "Narva, Mai"]
[Result "1/2-1/2"]
[TimeControl "40/90 + 30 + 30s/move"]
[WhiteFideId "13708694"]
[BlackFideId "4500512"]
[WhiteElo "2469"]
[BlackElo "2399"]

1. g3 {[%clk 01:30:37]} {[%emt 00:00:22]} e5 {[%clk 01:29:23]} {[%emt
00:01:37]} 2. c4 {[%clk 01:30:57]} {[%emt 00:00:10]} c6 {[%clk 01:29:08]}
{[%emt 00:00:44]} 3. Nf3 {[%clk 01:31:10]} {[%emt 00:00:18]} e4 {[%clk
01:28:37]} {[%emt 00:01:01]} 4. Nd4 {[%clk 01:31:34]} {[%emt 00:00:06]} d5
{[%clk 01:28:39]} {[%emt 00:00:29]} 5. cxd5 {[%clk 01:31:57]} {[%emt 00:00:07]}
Qb6 {[%clk 01:28:49]} {[%emt 00:00:19]} 6. Nb3 {[%clk 01:22:10]} {[%emt
00:10:17]} a5 {[%clk 01:28:54]} {[%emt 00:00:25]} 7. d3 {[%clk 01:15:44]}
{[%emt 00:06:57]} a4 {[%clk 01:28:34]} {[%emt 00:00:50]} 8. N3d2 {[%clk
01:15:56]} {[%emt 00:00:18]} exd3 {[%clk 01:28:24]} {[%emt 00:00:39]} 9. Bg2
{[%clk 01:06:04]} {[%emt 00:10:22]} cxd5 {[%clk 01:20:11]} {[%emt 00:08:43]} 10.
O-O {[%clk 01:01:15]} {[%emt 00:05:19]} Nf6 {[%clk 01:15:51]} {[%emt 00:04:50]}
11. exd3 {[%clk 00:59:12]} {[%emt 00:02:34]} Be7 {[%clk 01:14:10]} {[%emt
00:02:10]} 12. Nc3 {[%clk 00:57:46]} {[%emt 00:01:56]} Qa5 {[%clk 01:10:29]}
{[%emt 00:04:11]} 13. Nf3 {[%clk 00:45:50]} {[%emt 00:12:26]} Nc6 {[%clk
01:09:03]} {[%emt 00:01:55]} 14. d4 {[%clk 00:44:04]} {[%emt 00:02:18]} O-O
{[%clk 01:07:34]} {[%emt 00:01:59]} 15. Bd2 {[%clk 00:44:07]} {[%emt 00:00:27]}
Qa6 {[%clk 00:51:59]} {[%emt 00:16:04]} 16. Re1 {[%clk 00:42:38]} {[%emt
00:01:59]} Be6 {[%clk 00:43:10]} {[%emt 00:09:19]} 17. a3 {[%clk 00:35:49]}
{[%emt 00:07:20]} Rfc8 {[%clk 00:28:57]} {[%emt 00:14:42]} 18. Rc1 {[%clk
00:32:51]} {[%emt 00:03:29]} h6 {[%clk 00:26:30]} {[%emt 00:02:56]} 19. Bf4
{[%clk 00:30:59]} {[%emt 00:02:21]} Bf8 {[%clk 00:22:58]} {[%emt 00:04:02]} 20.
h3 {[%clk 00:25:02]} {[%emt 00:06:29]} Qa5 {[%clk 00:20:46]} {[%emt 00:02:42]}
21. Qd3 {[%clk 00:22:44]} {[%emt 00:02:47]} Rd8 {[%clk 00:19:17]} {[%emt
00:01:59]} 22. g4 {[%clk 00:18:41]} {[%emt 00:04:34]} Qb6 {[%clk 00:05:45]}
{[%emt 00:14:01]} 23. Qb5 {[%clk 00:15:10]} {[%emt 00:04:01]} Qxb5 {[%clk
00:04:45]} {[%emt 00:01:30]} 24. Nxb5 {[%clk 00:15:39]} {[%emt 00:00:02]} Ne8
{[%clk 00:04:26]} {[%emt 00:00:48]} 25. Bf1 {[%clk 00:14:08]} {[%emt 00:02:01]}
Rdc8 {[%clk 00:01:00]} {[%emt 00:03:56]} 26. Nc3 {[%clk 00:10:45]} {[%emt
00:03:54]} Bd6 {[%clk 00:01:10]} {[%emt 00:00:20]} 27. Be3 {[%clk 00:09:20]}
{[%emt 00:01:54]} Nc7 {[%clk 00:01:24]} {[%emt 00:00:16]} 28. Bd3 {[%clk
00:08:17]} {[%emt 00:01:33]} Bd7 {[%clk 00:01:14]} {[%emt 00:00:41]} 29. Nh4
{[%clk 00:04:17]} {[%emt 00:04:30]} g6 {[%clk 00:01:09]} {[%emt 00:00:35]} 30.
Nb5 {[%clk 00:02:26]} {[%emt 00:02:21]} Nxb5 {[%clk 00:01:13]} {[%emt
00:00:26]} 31. Bxb5 {[%clk 00:02:55]} {[%emt 00:00:01]} Kg7 {[%clk 00:01:25]}
{[%emt 00:00:18]} 32. Nf3 {[%clk 00:02:59]} {[%emt 00:00:26]} Ra5 {[%clk
00:01:07]} {[%emt 00:00:47]} 33. Bd3 {[%clk 00:02:45]} {[%emt 00:00:44]} Raa8
{[%clk 00:01:10]} {[%emt 00:00:28]} 34. Bb5 {[%clk 00:02:38]} {[%emt 00:00:36]}
Ra5 {[%clk 00:01:32]} {[%emt 00:00:08]} 35. Bd3 {[%clk 00:03:04]} {[%emt
00:00:04]} Raa8 {[%clk 00:01:44]} {[%emt 00:00:18]} 36. Bb5 {[%clk 00:03:29]}
{[%emt 00:00:05]} Ra5 {[%clk 00:01:59]} {[%emt 00:00:15]} 1/2-1/2

[Event "FIDE Women's Grand Swiss 2023"]
[Site "Villa Marina, Douglas, Isle of Man, Isle Of Man"]
[Date "2023.11.05"]
[Round "11.8"]
[White "Cori T., Deysi"]
[Black "Wagner, Dinara"]
[Result "1/2-1/2"]
[TimeControl "40/90 + 30 + 30s/move"]
[WhiteFideId "3801934"]
[BlackFideId "24157570"]
[WhiteElo "2367"]
[BlackElo "2461"]

1. Nf3 {[%clk 01:30:40]} {[%emt 00:00:18]} d5 {[%clk 01:30:55]} {[%emt
00:00:05]} 2. g3 {[%clk 01:31:00]} {[%emt 00:00:11]} c5 {[%clk 01:31:18]}
{[%emt 00:00:07]} 3. Bg2 {[%clk 01:31:21]} {[%emt 00:00:09]} Nc6 {[%clk
01:31:35]} {[%emt 00:00:12]} 4. d4 {[%clk 01:31:36]} {[%emt 00:00:16]} Nf6
{[%clk 01:31:47]} {[%emt 00:00:17]} 5. O-O {[%clk 01:31:46]} {[%emt 00:00:20]}
e6 {[%clk 01:32:03]} {[%emt 00:00:15]} 6. c4 {[%clk 01:31:39]} {[%emt
00:00:37]} dxc4 {[%clk 01:32:24]} {[%emt 00:00:09]} 7. Na3 {[%clk 01:30:48]}
{[%emt 00:01:20]} cxd4 {[%clk 01:32:01]} {[%emt 00:00:54]} 8. Nxc4 {[%clk
01:31:16]} {[%emt 00:00:02]} Bc5 {[%clk 01:30:36]} {[%emt 00:01:54]} 9. a3
{[%clk 01:31:14]} {[%emt 00:00:33]} a5 {[%clk 01:31:00]} {[%emt 00:00:06]} 10.
b3 {[%clk 01:31:16]} {[%emt 00:00:27]} O-O {[%clk 01:23:26]} {[%emt 00:08:04]}
11. Bb2 {[%clk 01:31:39]} {[%emt 00:00:08]} Re8 {[%clk 01:21:28]} {[%emt
00:02:28]} 12. Rc1 {[%clk 01:27:05]} {[%emt 00:05:04]} Ba7 {[%clk 01:20:58]}
{[%emt 00:01:00]} 13. Nce5 {[%clk 01:25:08]} {[%emt 00:02:27]} Nxe5 {[%clk
01:20:46]} {[%emt 00:00:42]} 14. Nxe5 {[%clk 01:25:36]} {[%emt 00:00:02]} Qd6
{[%clk 01:20:31]} {[%emt 00:00:45]} 15. Nc4 {[%clk 01:24:47]} {[%emt 00:01:19]}
Qa6 {[%clk 01:09:12]} {[%emt 00:11:49]} 16. Ne5 {[%clk 01:10:07]} {[%emt
00:15:10]} Qd6 {[%clk 01:09:22]} {[%emt 00:00:20]} 17. Nc4 {[%clk 01:09:34]}
{[%emt 00:01:03]} Qa6 {[%clk 01:08:34]} {[%emt 00:01:18]} 18. Ne5 {[%emt
00:06:06]} Qd6 1/2-1/2

[Event "FIDE Women's Grand Swiss 2023"]
[Site "Villa Marina, Douglas, Isle of Man, Isle Of Man"]
[Date "2023.11.05"]
[Round "11.9"]
[White "Goryachkina, Aleksandra"]
[Black "Dronavalli, Harika"]
[Result "1/2-1/2"]
[TimeControl "40/90 + 30 + 30s/move"]
[WhiteFideId "4147103"]
[BlackFideId "5015197"]
[WhiteElo "2558"]
[BlackElo "2502"]

1. d4 {[%clk 01:30:50]} {[%emt 00:00:10]} d5 {[%clk 01:30:40]} {[%emt
00:00:21]} 2. c4 {[%clk 01:31:08]} {[%emt 00:00:12]} e6 {[%clk 01:29:50]}
{[%emt 00:01:19]} 3. Nf3 {[%clk 01:31:24]} {[%emt 00:00:14]} Nf6 {[%clk
01:30:05]} {[%emt 00:00:15]} 4. g3 {[%clk 01:31:41]} {[%emt 00:00:13]} Be7
{[%clk 01:29:33]} {[%emt 00:01:02]} 5. Bg2 {[%clk 01:31:48]} {[%emt 00:00:24]}
O-O {[%clk 01:29:47]} {[%emt 00:00:16]} 6. O-O {[%clk 01:31:57]} {[%emt
00:00:20]} dxc4 {[%clk 01:28:33]} {[%emt 00:01:44]} 7. Qc2 {[%clk 01:32:01]}
{[%emt 00:00:27]} b5 {[%clk 01:27:20]} {[%emt 00:01:43]} 8. a4 {[%clk
01:31:53]} {[%emt 00:00:38]} b4 {[%clk 01:27:05]} {[%emt 00:00:44]} 9. Nfd2
{[%clk 01:31:27]} {[%emt 00:00:57]} Nd5 {[%clk 01:26:42]} {[%emt 00:00:53]} 10.
Nxc4 {[%clk 01:30:53]} {[%emt 00:01:04]} c5 {[%clk 01:26:17]} {[%emt 00:00:54]}
11. dxc5 {[%clk 01:30:49]} {[%emt 00:00:34]} Bxc5 {[%clk 01:26:02]} {[%emt
00:00:45]} 12. e4 {[%clk 01:21:32]} {[%emt 00:09:48]} Nb6 {[%clk 01:25:36]}
{[%emt 00:00:55]} 13. Be3 {[%clk 01:14:21]} {[%emt 00:07:41]} Qe7 {[%clk
01:08:33]} {[%emt 00:17:34]} 14. Nxb6 {[%clk 01:12:42]} {[%emt 00:02:09]} axb6
{[%clk 00:54:00]} {[%emt 00:15:03]} 15. Bxc5 {[%clk 01:12:27]} {[%emt
00:00:45]} bxc5 {[%clk 00:53:23]} {[%emt 00:01:06]} 16. Nd2 {[%clk 01:12:12]}
{[%emt 00:00:45]} Ba6 {[%clk 00:52:18]} {[%emt 00:01:36]} 17. Rfc1 {[%clk
01:10:12]} {[%emt 00:02:30]} Nd7 {[%clk 00:51:13]} {[%emt 00:01:36]} 18. Bf1
{[%clk 01:05:52]} {[%emt 00:04:50]} Rfc8 {[%clk 00:48:30]} {[%emt 00:03:12]} 19.
Bxa6 {[%clk 01:02:45]} {[%emt 00:03:38]} Rxa6 {[%clk 00:48:55]} {[%emt
00:00:06]} 20. Nc4 {[%clk 01:01:22]} {[%emt 00:01:52]} Nb6 {[%clk 00:47:29]}
{[%emt 00:01:56]} 21. b3 {[%clk 00:47:51]} {[%emt 00:14:01]} Nxc4 {[%clk
00:43:35]} {[%emt 00:04:24]} 22. Qxc4 {[%clk 00:48:14]} {[%emt 00:00:06]} Rd6
{[%clk 00:42:15]} {[%emt 00:01:50]} 23. a5 {[%clk 00:44:39]} {[%emt 00:04:06]}
h5 {[%clk 00:40:11]} {[%emt 00:02:33]} 24. Rd1 {[%clk 00:39:33]} {[%emt
00:05:37]} Rdc6 {[%clk 00:17:01]} {[%emt 00:23:41]} 25. a6 {[%clk 00:34:30]}
{[%emt 00:05:33]} Ra8 {[%clk 00:16:54]} {[%emt 00:00:36]} 26. Qb5 {[%clk
00:27:54]} {[%emt 00:07:06]} Qc7 {[%clk 00:14:28]} {[%emt 00:02:56]} 27. Rdc1
{[%clk 00:25:15]} {[%emt 00:03:09]} Ra7 {[%clk 00:08:06]} {[%emt 00:06:53]} 28.
Ra5 {[%clk 00:23:31]} {[%emt 00:02:14]} g6 {[%clk 00:05:50]} {[%emt 00:02:46]}
29. Kg2 {[%clk 00:18:59]} {[%emt 00:05:02]} Kh7 {[%clk 00:05:51]} {[%emt
00:00:29]} 30. h4 {[%clk 00:15:43]} {[%emt 00:03:46]} Qb6 {[%clk 00:03:56]}
{[%emt 00:02:24]} 31. Qxb6 {[%clk 00:14:17]} {[%emt 00:01:57]} Rxb6 {[%clk
00:04:25]} {[%emt 00:00:02]} 32. Rcxc5 {[%clk 00:14:40]} {[%emt 00:00:07]}
Raxa6 {[%clk 00:04:40]} {[%emt 00:00:15]} 33. Rxa6 {[%clk 00:15:02]} {[%emt
00:00:07]} Rxa6 {[%emt 00:00:06]} 34. Rb5 {[%clk 00:15:27]} {[%emt 00:00:04]}
e5 {[%clk 00:01:44]} {[%emt 00:03:51]} 35. Rxb4 {[%clk 00:15:18]} {[%emt
00:00:39]} Ra2 {[%clk 00:02:11]} {[%emt 00:00:03]} 36. Rb8 {[%clk 00:11:24]}
{[%emt 00:04:23]} Rb2 {[%clk 00:02:26]} {[%emt 00:00:15]} 37. b4 {[%clk
00:10:51]} {[%emt 00:01:04]} Kg7 {[%clk 00:02:40]} {[%emt 00:00:15]} 38. b5
{[%clk 00:09:10]} {[%emt 00:02:12]} Rb4 {[%clk 00:02:47]} {[%emt 00:00:22]} 39.
Kf3 {[%clk 00:08:10]} {[%emt 00:01:31]} Rb3+ {[%clk 00:03:03]} {[%emt
00:00:14]} 40. Ke2 {[%clk 00:08:02]} {[%emt 00:00:39]} Rb2+ {[%clk 00:02:46]}
{[%emt 00:00:44]} 41. Ke3 {[%clk 00:07:19]} {[%emt 00:01:16]} Rb3+ {[%clk
00:02:05]} {[%emt 00:01:11]} 42. Kd2 {[%clk 00:06:05]} {[%emt 00:01:44]} Rb2+
{[%clk 00:26:15]} {[%emt 00:06:21]} 43. Kc3 {[%clk 00:35:46]} {[%emt 00:00:48]}
Rxf2 {[%clk 00:26:40]} {[%emt 00:00:05]} 44. b6 {[%clk 00:36:02]} {[%emt
00:00:14]} Rf1 {[%clk 00:25:43]} {[%emt 00:01:26]} 45. Kc4 {[%clk 00:32:24]}
{[%emt 00:04:09]} Rb1 {[%clk 00:21:54]} {[%emt 00:04:19]} 46. Kd5 {[%clk
00:28:31]} {[%emt 00:04:24]} Rb3 {[%clk 00:19:21]} {[%emt 00:03:02]} 47. Kxe5
{[%clk 00:23:42]} {[%emt 00:05:19]} Rxg3 {[%clk 00:19:03]} {[%emt 00:00:48]} 48.
Rc8 {[%clk 00:23:40]} {[%emt 00:00:32]} Rb3 {[%clk 00:18:32]} {[%emt 00:01:00]}
49. Rc6 {[%clk 00:23:48]} {[%emt 00:00:22]} g5 {[%clk 00:16:17]} {[%emt
00:02:46]} 50. hxg5 {[%clk 00:17:14]} {[%emt 00:07:04]} h4 {[%clk 00:16:43]}
{[%emt 00:00:04]} 51. Kd5 {[%clk 00:14:49]} {[%emt 00:02:55]} h3 {[%clk
00:16:12]} {[%emt 00:01:00]} 52. Rh6 {[%clk 00:14:33]} {[%emt 00:00:47]} h2
{[%clk 00:15:41]} {[%emt 00:01:00]} 53. Kc6 {[%clk 00:11:59]} {[%emt 00:03:05]}
Rc3+ {[%clk 00:14:55]} {[%emt 00:01:11]} 54. Kb7 {[%clk 00:10:53]} {[%emt
00:01:40]} Rc2 {[%clk 00:15:08]} {[%emt 00:00:17]} 55. e5 {[%clk 00:11:12]}
{[%emt 00:00:11]} Rb2 {[%clk 00:14:38]} {[%emt 00:00:59]} 56. Ka7 {[%clk
00:11:08]} {[%emt 00:00:33]} Ra2+ {[%clk 00:14:21]} {[%emt 00:00:47]} 57. Kb8
{[%clk 00:11:17]} {[%emt 00:00:22]} Rc2 {[%clk 00:13:09]} {[%emt 00:01:38]} 58.
b7 {[%clk 00:11:21]} {[%emt 00:00:30]} Rb2 {[%clk 00:13:35]} {[%emt 00:00:03]}
59. Kc7 {[%clk 00:07:15]} {[%emt 00:04:35]} Rc2+ {[%clk 00:13:41]} {[%emt
00:00:24]} 60. Kb6 {[%clk 00:07:08]} {[%emt 00:00:37]} Rb2+ {[%clk 00:13:59]}
{[%emt 00:00:12]} 61. Kc6 {[%clk 00:07:16]} {[%emt 00:00:23]} Rc2+ {[%clk
00:14:17]} {[%emt 00:00:12]} 62. Kd5 {[%clk 00:07:39]} {[%emt 00:00:07]} Rb2
{[%clk 00:14:30]} {[%emt 00:00:15]} 63. Rxh2 {[%clk 00:07:38]} {[%emt
00:00:33]} Rxb7 {[%clk 00:14:56]} {[%emt 00:00:05]} 1/2-1/2

[Event "FIDE Women's Grand Swiss 2023"]
[Site "Villa Marina, Douglas, Isle of Man, Isle Of Man"]
[Date "2023.11.05"]
[Round "11.10"]
[White "Milliet, Sophie"]
[Black "Gunina, Valentina"]
[Result "1/2-1/2"]
[TimeControl "40/90 + 30 + 30s/move"]
[WhiteFideId "623725"]
[BlackFideId "4167570"]
[WhiteElo "2391"]
[BlackElo "2439"]

1. d4 {[%clk 01:30:56]} {[%emt 00:00:04]} d5 {[%clk 01:30:48]} {[%emt
00:00:12]} 2. c4 {[%clk 01:31:21]} {[%emt 00:00:06]} c6 {[%clk 01:31:10]}
{[%emt 00:00:08]} 3. cxd5 {[%clk 01:31:46]} {[%emt 00:00:05]} cxd5 {[%clk
01:31:35]} {[%emt 00:00:05]} 4. Bf4 {[%clk 01:32:08]} {[%emt 00:00:08]} Nf6
{[%clk 01:31:04]} {[%emt 00:00:59]} 5. Nc3 {[%clk 01:32:27]} {[%emt 00:00:12]}
Nc6 {[%clk 01:30:24]} {[%emt 00:01:11]} 6. e3 {[%clk 01:32:49]} {[%emt
00:00:08]} a6 {[%clk 01:30:36]} {[%emt 00:00:18]} 7. Be2 {[%clk 01:33:03]}
{[%emt 00:00:16]} Bf5 {[%clk 01:30:44]} {[%emt 00:00:19]} 8. Nf3 {[%clk
01:33:04]} {[%emt 00:00:31]} Nh5 {[%clk 01:30:59]} {[%emt 00:00:15]} 9. Be5
{[%clk 01:32:50]} {[%emt 00:00:44]} e6 {[%clk 01:30:10]} {[%emt 00:01:18]} 10.
Qb3 {[%clk 01:32:16]} {[%emt 00:01:04]} Na5 {[%clk 01:27:31]} {[%emt 00:03:08]}
11. Qa4+ {[%clk 01:32:41]} {[%emt 00:00:05]} Nc6 {[%clk 01:27:57]} {[%emt
00:00:05]} 12. Qb3 {[%clk 01:32:55]} {[%emt 00:00:16]} Na5 {[%clk 01:28:07]}
{[%emt 00:00:20]} 13. Qa4+ {[%clk 01:33:18]} {[%emt 00:00:07]} Nc6 {[%clk
01:28:30]} {[%emt 00:00:06]} 14. Qb3 {[%emt 00:00:22]} 1/2-1/2